Cogmind - Beta 16.1 @@@ ROGUE MODE // 2026.04.06 @ 11:29:01 Player: gamerman Result: Destroyed by XW-RA3(R) with Subdweller Laser Performance ------------- Evolutions (0) 0 Regions Visited (3) 600 Robots Destroyed (23) 115 Value Destroyed (539) 539 Prototype IDs (0) 0 Alien Tech Used (0) 0 Bonus (0) 0 TOTAL SCORE: 1254 Bonus ------- None Cogmind --------- Core Integrity 0/250 Matter 290/300 Energy 49/125 System Corruption 0% Temperature Cool (6) Movement Walking (270) Ox2 Location -10/Subcaves Parts ------- > --- POWER (1) -------- Light Ion Engine > --- PROPULSION (2) --- Titanium Leg > --- UTILITY (2) ------ Improved Heat Sink Large Storage Unit > --- WEAPON (2) ------- Heavy Particle Cannon Ion Cannon > --- INVENTORY (15) --- Deuterium Engine Light Nuclear Core Subdweller Monowheel Flight Unit Flight Unit Flight Unit Flight Unit Cesium-ion Thruster Large Storage Unit Subdweller Optics Scrap Shield Particle Gun Great Maul Peak State ------------ > --- POWER ------------ Light Ion Engine > --- PROPULSION ------- Aluminum Leg Titanium Leg > --- UTILITY ---------- Improved Heat Sink Large Storage Unit > --- WEAPON ----------- Heavy Particle Cannon Ion Cannon > --- INVENTORY -------- Ion Engine Light Ion Engine Deuterium Engine Light Nuclear Core Flight Unit Flight Unit Flight Unit Flight Unit Cesium-ion Thruster Large Storage Unit Particle Gun Light Assault Rifle Great Maul [Rating: 17] Favorites ----------- Power Light Ion Engine Engine Light Ion Engine Propulsion Aluminum Leg Treads Light Treads Leg Aluminum Leg Utility Large Storage Unit Device Improved Heat Sink Storage Large Storage Unit Weapon Heavy Particle Cannon Energy Gun Particle Gun Energy Cannon Heavy Particle Cannon Ballistic Gun Light Assault Rifle Build | -11 -10 -10 -10 ------- Run | Yrd Mat Min Sub Slots Evolved . | . . . . Power . | . . . . Propulsion . | . . . . Utility . | . . . . Weapon . | . . . . Parts Attached 18 | 6 3 8 1 Power 4 | 1 . 2 1 Engine 4 | 1 . 2 1 Core . | . . . . Reactor . | . . . . Propulsion 4 | 2 . 2 . Treads 2 | 2 . . . Leg 2 | . . 2 . Wheel . | . . . . Hover . | . . . . Flight . | . . . . Utility 4 | 1 2 1 . Device 1 | . . 1 . Storage 3 | 1 2 . . Processor . | . . . . Hackware . | . . . . Protection . | . . . . Artifact . | . . . . Weapon 6 | 2 1 3 . Energy Gun 2 | . 1 1 . Energy Cannon 2 | . . 2 . Ballistic Gun 2 | 2 . . . Ballistic Cannon . | . . . . Launcher . | . . . . Special Weapon . | . . . . Impact Weapon . | . . . . Slashing Weapon . | . . . . Piercing Weapon . | . . . . Special Melee Weapon . | . . . . Unidentified Prototypes . | . . . . Parts Lost 6 | . . 4 2 Power 2 | . . 1 1 Propulsion 3 | . . 2 1 Utility . | . . . . Weapon 1 | . . 1 . Highest Loss Streak 4 | . . 4 2 To Critical Strikes . | . . . . Average Backups 10 | 1 4 12 13 Power 3 | . 1 4 3 Propulsion 3 | . . 4 5 Utility 1 | . . 1 1 Weapon 2 | . 1 2 2 Tool/Special . | . . . . Unused Backups 15 | . . 3 12 Power 3 | . . 1 2 Propulsion 8 | . . 2 6 Utility 2 | . . . 2 Weapon 2 | . . . 2 Tool/Special . | . . . . Average Slot Usage (%) 92 | . 85 90 99 Engine 11 | . 14 9 13 Treads 6 | . 28 2 . Leg 20 | . . 21 27 Device 10 | . . 12 14 Storage 14 | . 14 14 14 Energy Gun 4 | . 8 6 . Energy Cannon 17 | . . 16 28 Ballistic Gun 6 | . 19 5 . Peak Build Rating 17 | 6 8 17 17 Average Rating 13 | 4 6 13 16 On Entrance 7 | . 6 8 17 Avg Prop Armor Cover (%) . | . . . . Naked Turns . | . . . . Heaviest Build 36 | 12 29 36 36 Greatest Support 40 | 40 40 40 27 Greatest Overweight (x) 8 | . . 8 2 Average Overweight (x) . | . . . 1 Largest Inventory Capacity 15 | 8 15 15 15 Average Capacity 14 | 6 14 15 15 Most Carried 15 | 2 11 15 15 Average Carried 11 | 1 4 12 13 Final Capacity 15 | 8 15 15 15 Final Carried 14 | 2 11 13 14 Class Distribution -------------------- 100% | Mutant Dominant Class ---------------- Mutant | -10/Materials Mutant | -10/Mines Mutant | -10/Subcaves Resources | -11 -10 -10 -10 ----------- Run | Yrd Mat Min Sub Matter Collected 410 | 189 145 76 . Remotely . | . . . . Salvage Created 716 | . 334 382 . Parts 53 | . 26 27 . Haulers Intercepted . | . . . . Recyclers Shooed . | . . . . Parts Field Recycled . | . . . . Retrieved Matter . | . . . . Parts Self-Destructed 8 | . . . 8 Prevented . | . . . . Parts Restored . | . . . . Kills | -11 -10 -10 -10 ------- Run | Yrd Mat Min Sub Combat Hostiles Destroyed 21 | . 8 13 . Guns 11 | . 8 3 . Cannons 10 | . . 10 . Classes Destroyed 6 | . 4 2 . Worker 2 | . 2 . . Tunneler 2 | . . 2 . Operator 1 | . 1 . . Swarmer 6 | . 2 4 . Grunt 12 | . 6 6 . Assembled 3 | . . 3 . Best Kill Streak 9 | . 5 9 . Combat Bots Only 7 | . 4 7 . Max Kills in Single Turn 2 | . 1 2 . Gunslinging . | . . . . Exploded . | . . . . Melee . | . . . . Uniques/NPCs Destroyed . | . . . . Combat | -11 -10 -10 -10 -------- Run | Yrd Mat Min Sub Hostile Shots Fired 113 | . 48 45 20 Missed 24 | . 13 8 3 Hits 89 | . 35 37 17 Projectile 89 | . 35 37 17 Critical Strikes 6 | . 3 2 1 Damage Taken 1189 | . 431 416 342 Core 264 | . 53 152 59 Absorbed by Shields . | . . . . Core Remaining (%) 100 | 100 . . . Volleys Fired 74 | . 34 27 13 Largest 2 | . 2 2 2 Hottest 135 | . 85 135 135 Shots Fired 144 | . 66 52 26 Gun 86 | . 66 20 . Cannon 58 | . . 32 26 Launcher . | . . . . Special . | . . . . Kinetic 57 | . 46 11 . Thermal 87 | . 20 41 26 Explosive . | . . . . Electromagnetic . | . . . . Robot Hit Streak 16 | . 16 9 3 Robot Miss Streak 5 | . 3 5 4 Penetration Max . | . . . . Secondary Targets 2 | . 1 1 . Max Gunslinging Chain 1 | . 1 1 . Shots Hit Robots 71 | . 42 25 4 Core Hits 37 | . 18 19 . Critical Kills . | . . . . Critical Parts Destroyed . | . . . . Critical Strikes . | . . . . Melee Attacks . | . . . . Impact . | . . . . Slashing . | . . . . Piercing . | . . . . Sneak Attacks . | . . . . Combat Hostiles . | . . . . Follow-up Attacks . | . . . . Damage Inflicted 1092 | . 464 506 122 Guns 630 | . 464 166 . Cannons 458 | . . 336 122 Explosions . | . . . . Melee . | . . . . Ramming 4 | . . 4 . Kinetic 307 | . 251 56 . Thermal 781 | . 213 446 122 Explosive . | . . . . Electromagnetic . | . . . . Impact . | . . . . Slashing . | . . . . Piercing . | . . . . Highest Corruption . | . . . . Average Corruption . | . . . . Corruption Purged . | . . . . Corruption Blocked . | . . . . Overload Shots . | . . . . Overflow Damage 7 | . . 7 . Projectiles 7 | . . 7 . Explosions . | . . . . Melee . | . . . . Knockbacks . | . . . . Impact . | . . . . Kinetic . | . . . . Secondary . | . . . . Self-Inflicted Damage . | . . . . Shots . | . . . . Rammed 1 | . . 1 . Targets Rammed 1 | . . 1 . Kicked . | . . . . Crushed . | . . . . Highest Temperature 295 | . 244 295 3 Average Temperature 86 | . 77 101 3 Received Heat Transfer 563 | . 273 188 102 Siege Activations . | . . . . Martial Activations . | . . . . Shielding Activations . | . . . . Robots Disrupted . | . . . . Combat Hostiles . | . . . . Robots Corrupted . | . . . . Combat Hostiles . | . . . . Parts Fried . | . . . . Impact Corruptions . | . . . . Robots Melted . | . . . . Combat Hostiles . | . . . . Parts Melted 2 | . . 2 . Heat Transferred 1480 | . 518 777 185 Parts Sabotaged . | . . . . Parts Stolen . | . . . . Parts Stripped . | . . . . Power Chain Reactions . | . . . . Alert | -11 -10 -10 -10 ------- Run | Yrd Mat Min Sub Maximum Alert Level . | . . . . Low Security (%) 100 | 100 100 100 . Level 1 . | . . . . Level 2 . | . . . . Level 3 . | . . . . Level 4 . | . . . . Level 5 . | . . . . High Security . | . . . . Max Security . | . . . . Peak Influence 160 | . 160 84 . Initial 48 | . . 48 . Average 32 | . 72 22 . Influence Increases 473 | . 235 238 . Destroy 0b10 Robot/C 360 | . 160 200 . Destroy 0b10 Robot/NC 25 | . 15 10 . Destroy Leader 50 | . 30 20 . Destroy Structure 8 | . . 8 . Lose Combat Pursuer 30 | . 30 . . Influence Decreases 473 | . 110 315 48 Entered New Map 103 | . . 77 26 Time Decay 352 | . 110 220 22 Lost Part 18 | . . 18 . Squads Dispatched 2 | . 1 1 . Investigation 1 | . . 1 . Extermination . | . . . . Reinforcement 1 | . 1 . . Assault . | . . . . Garrison . | . . . . Intercept . | . . . . Searches Triggered . | . . . . Construction Impeded . | . . . . Haulers Reinforced . | . . . . Active Scanning Responses . | . . . . Cargo Convoy Interrupts . | . . . . Stealth | -11 -10 -10 -10 --------- Run | Yrd Mat Min Sub Distress Signals 3 | . 3 . . Communications Jammed . | . . . . Distress Signals . | . . . . Times Spotted 34 | . 15 17 2 Peak Tracking Total 6 | . 6 4 2 Tactical Retreats 2 | . 2 . . Traps | -11 -10 -10 -10 ------- Run | Yrd Mat Min Sub Traps Triggered . | . . . . Indirectly . | . . . . Trap Hack Attempts . | . . . . Triggered . | . . . . Disarmed . | . . . . Reprogrammed . | . . . . Reused . | . . . . Traps Extracted . | . . . . Installed . | . . . . Triggered . | . . . . Machines | -11 -10 -10 -10 ---------- Run | Yrd Mat Min Sub Machines Disabled . | . . . . Max in Single Turn . | . . . . Machines Repaired . | . . . . Machines Dismantled . | . . . . Machines Sabotaged . | . . . . Overloaded Fab Kills . | . . . . Hacking | -11 -10 -10 -10 --------- Run | Yrd Mat Min Sub Machines Accessed 2 | . . 1 1 Terminals . | . . . . Fabricators . | . . . . Repair Stations . | . . . . Recycling Units . | . . . . Scanalyzers . | . . . . Garrison Access . | . . . . Total Hacks 4 | . . 1 3 Successful 4 | . . 1 3 Failed . | . . . . Catastrophic . | . . . . Database Lockouts . | . . . . Manual 1 | . . . 1 Terminals . | . . . . Fabricators . | . . . . Repair Stations . | . . . . Recycling Units . | . . . . Scanalyzers . | . . . . Garrison Access . | . . . . Terminal Hacks 4 | . . 1 3 Record 3 | . . . 3 Open Door 1 | . . 1 . Fabricator Hacks . | . . . . Repair Station Hacks . | . . . . Recycling Unit Hacks . | . . . . Scanalyzer . | . . . . Garrison Access Hacks . | . . . . Unauthorized Hacks . | . . . . Terminals . | . . . . Fabricators . | . . . . Repair Stations . | . . . . Recycling Units . | . . . . Scanalyzers . | . . . . Garrison Access . | . . . . Data Cores Recovered . | . . . . Used . | . . . . Hacking Detections . | . . . . Full Trace Events . | . . . . Feedback Events . | . . . . Feedback Blocked . | . . . . Robot Schematics Acquired . | . . . . Robots Built . | . . . . Authchips . | . . . . Time . | . . . . Total Robot Build Rating . | . . . . Part Schematics Acquired . | . . . . Parts Built . | . . . . Authchips . | . . . . Time . | . . . . Total Part Build Rating . | . . . . Part Studies Acquired . | . . . . Parts Repaired . | . . . . Time . | . . . . Parts Recycled . | . . . . Recycled Matter . | . . . . Retrieved Matter . | . . . . Retrieved Components . | . . . . Parts Scanalyzed . | . . . . Part Schematics Acquired . | . . . . Parts Damaged . | . . . . Bothacking | -11 -10 -10 -10 ------------ Run | Yrd Mat Min Sub Used RIF Installer . | . . . . Robots Hacked . | . . . . Non-combat . | . . . . Combat . | . . . . Robot Hacks Applied . | . . . . Relay Couplers Released . | . . . . Fabnet Peak Effective % . | . . . . Robots Rewired . | . . . . Allies Hacked . | . . . . Hacks Repelled . | . . . . Allies | -11 -10 -10 -10 -------- Run | Yrd Mat Min Sub Total Allies . | . . . . Largest Group . | . . . . Highest-Rated Group . | . . . . Highest-Rated Ally . | . . . . Total Orders . | . . . . Ally Attacks . | . . . . Total Damage . | . . . . Kills . | . . . . Allies Corrupted . | . . . . Allies Melted . | . . . . Intel | -11 -10 -10 -10 ------- Run | Yrd Mat Min Sub Active Infowar (turns) . | . . . . Robot Analysis Total . | . . . . Derelict Logs Recovered 1 | . . 1 . Drone Launches . | . . . . Drone Recoveries . | . . . . Exploration | -11 -10 -10 -10 ------------- Run | Yrd Mat Min Sub Turns Passed 1994 | 59 306 1034 595 Spaces Moved 905 | 37 120 467 281 Core 13 | 9 . 4 . Treads 197 | 28 120 49 . Legs 695 | . . 414 281 Wheels . | . . . . Hover . | . . . . Flight . | . . . . Fastest Speed 50 | 50 160 125 195 Average Speed 187 | 133 160 193 195 Slowest Speed 450 | 160 160 450 270 Overloaded Moves . | . . . . Propulsion Burnouts . | . . . . Robots Hopped . | . . . . Potential Cave-ins . | . . . . Cave-ins Triggered . | . . . . Exploration Rate (%) 35 | 3 30 93 17 Regions Visited 3 Branch Regions 2 Pre-discovered Areas 1 | . . . 1 Known Exits Taken . | . . . . Unknown Exits Taken 3 | 1 1 1 . Scrap Searched 4 | . . 1 3 Spaces Dug . | . . . . Terrain Destroyed 8 | . . 8 . Melee . | . . . . Projectile 8 | . . 8 . AOE . | . . . . Terrain Rammed . | . . . . Walls Destroyed . | . . . . Machines Disabled . | . . . . Actions | -11 -10 -10 -10 --------- Run | Yrd Mat Min Sub Total 1077 | 44 178 551 304 Wait 43 | . 9 34 . Move 902 | 36 119 466 281 Hop . | . . . . Pick Up 26 | 2 10 9 5 Fast Attach 11 | 6 2 3 . Attach 6 | . 1 4 1 Detach 1 | . . 1 . Swap 1 | . . 1 . Drop 12 | . 3 5 4 Fire 74 | . 34 27 13 Melee . | . . . . Ram . | . . . . Kick . | . . . . Crush 1 | . . 1 . Escape Stasis . | . . . . Rewire . | . . . . Trap . | . . . . Miscellaneous . | . . . . Route ------- -11/Scrapyard -10/Materials -10/Mines (discovered 3 exits: [*Mat x2] / *Sub) -10/Subcaves History --------- Turn | Location | Event 9 | -11/Scrapyard | Discovered new exit (range 14) 60 | -11/Scrapyard | Entered Materials 308 | -10/Materials | Build established: Mutant 334 | -10/Materials | Discovered new exit (range 5) 366 | -10/Materials | Entered Mines 378 | -10/Mines | Learned 8 Materials zone layouts 472 | -10/Mines | Core integrity fell below 50% 504 | -10/Mines | Lost 4 parts (1p2n1w) 647 | -10/Mines | Discovered new exit (range 15) 661 | -10/Mines | Met a Derelict shopkeep closing up shop 955 | -10/Mines | Discovered new exit (range 14) 1005 | -10/Mines | Excavation squad dispatched 1005 | -10/Mines | A large section of the Mines collapsed 1067 | -10/Mines | Destroyed 7 combat bots 1290 | -10/Mines | Core integrity fell below 20% 1390 | -10/Mines | Discovered new exit (range 6) 1400 | -10/Mines | Entered Subcaves 1465 | -10/Subcaves | Visited Clippyterm 1471 | -10/Subcaves | Learned 40 Factory zone layouts 1571 | -10/Subcaves | A swath of the cavern ceiling suddenly collapsed 1741 | -10/Subcaves | Learned location of Zion (-7) 1741 | -10/Subcaves | Met a Zionite searching for "candidates" 1995 | -10/Subcaves | Destroyed by XW-RA3(R) with Subdweller Laser Last Messages --------------- 01897_ Found Scrap Shield. 01897_ Found 30 Matter. 01899_ Searching scrap... 01899_ Found Sub. Shrapnel Launcher. 01899_ Found 53 Matter. 01904_ Subatomizers dissect the Sub. Monowheel. 01907_ Dropped Great Maul. 01908_ Dropped Lgt. Assault Rifle. 01910_ Acquired Scrap Shield. 01916_ Subatomizers dissect the Sub. Monowheel. 01919_ Acquired Great Maul. 01926_ Acquired Sub. Monowheel. 01927_ Subatomizers dissect the Sub. Shrapnel Launcher. 01960_ Dropped Lgt. Ion Engine. 01960_ Acquired Lgt. Ion Engine. 01961_ Dropped Ion Engine. 01966_ Acquired Sub. Optics. 01983_ Aluminum Leg destroyed. 01985_ Lgt. Ion Engine destroyed. Map ----- +----------------------------------------------------+ | ??????????#""#"##"#?????##""#?# ###?????????????? | | ??????????# ###""##?????# #"### "##??????????????? | | ??????????# "#""#"#??????# ## #??????????????? | | ??????????## "#####??????# "### ##??????????????? | | ???????????####??????????# ## %#??????????????? | | ?????????????????????????# #??????????????? | | ????????????????????????## ## ###??????????????? | | ????????????????????????# ### #????????????????? | | ????????????????????????## ## #???????????????? | | ????????????????????????## # "##???????????????? | | ????????????????????????# ## """????????????????? | | ???????????????????####?## ### "###??????????????? | | ???????????????????#""### ## #??????????????? | | ???????????????????# [#%#" #???????????????? | | ???????????????????## & # ##???????????????? | | ???????????????????#% "##" # ##????????????????? | | ???????????????????#]%## #?????????????????? | | ???????????????????######## #?????????????????? | | ??????????????????????????### #?????????????????? | | ????????????????????????##### #?????????????????? | | ????????????????????????# # *##?#???????????????? | | ????????????????????????# ## ## #???????????????? | | ???????????????????????## #???????????????? | | ??????????????????????## ###?????????????? | | ??????????????????????# #?????????????? | | ??????????????????????# @[ #?????????????? | | ??????????????????????# ###?????????????? | | ?????????????????????# ##R ####???????????????? | | ?????????????????????# ?# R#??????????????????? | | ?????????????????????## ?# ?????????????????? | | ??????????????????????# #?## ????????????????? | | ?????????????????????? ???## #??????????????? | | ????????????????????? ?????# #?????????????? | | ????????????????????? ?????? ##?????????????? | | ????????????????????## ???????% ##??????????????? | | ?????????????????????##??????? #???????????????? | | ?????????????????????????????? %#???????????????? | | ?????????????????????????????? "##???????????????? | | ??????????????????????????????""?????????????????? | | ?????????????????????????????????????????????????? | | ?????????????????????????????????????????????????? | | ?????????????????????????????????????????????????? | | ?????????????????????????????????????????????????? | | ?????????????????????????????????????????????????? | | ?????????????????????????????????????????????????? | | ?????????????????????????????????????????????????? | | ?????????????????????????????????????????????????? | | ?????????????????????????????????????????????????? | | ?????????????????????????????????????????????????? | | ?????????????????????????????????????????????????? | +----------------------------------------------------+ Best States ------------- Heat Dissipation 39 Energy Generation 10 Energy Capacity 250 Matter Stores 300 Matter Capacity 300 Sight Range 16 Terrain Scan Density 10 Evasion (%) 55 Recoil Reduction 2 Item Schematics ----------------- None Robot Schematics ------------------ None Fabricated ------------ Nothing Repaired ---------- Nothing Studied --------- None Alien Tech Used ----------------- None Achievements -------------- None Challenges ------------ None Game ------ Seed CooledBattleLink Manual? 0 Play Time 00:14:42 Cumulative 35.2 hours Start 2026.04.06 @ 11:15:06 End 2026.04.06 @ 11:29:01 Sessions 1 Manual Loads 0 Difficulty Rogue Special Mode None Game No. 46 Rogue 46 Adventurer 0 Explorer 0 Win Type - Total 1 Types 1/0/0/0/0/0/0/0/0/0 Lore% 34 Gallery% 30 Achievement% 26 Wizard Run 0 Options --------- Layout 1 ASCII 0 Keyboard 0 Movement Vi Keybinds 0 Fullscreen 1 Font 24/Smallcaps Map View 50x40 Zoom Use 0% Tactical HUD 1 Map Filters NONE Filters NONE Steam 1 RUN: eee5a648-ecee-417e-a71b-e32cbdff7040